[Event "*** Titled Tuesday Blitz"]
[Site "Chess.com"]
[Date "2019.02.05"]
[Round "7"]
[White "Tolya2"]
[Black "TST2014"]
[Result "1/2-1/2"]
[WhiteElo "2530"]
[BlackElo "2522"]
[TimeControl "180+2"]
[EndTime "14:40:33 PST"]
[Termination "Game drawn by repetition"]

1. Nf3 {[%clk 0:03:00.7]} 1... Nf6 {[%clk 0:02:59.2]} 2. d4 {[%clk 0:03:01.3]}
2... g6 {[%clk 0:02:59.6]} 3. g3 {[%clk 0:03:02.4]} 3... Bg7 {[%clk 0:03:00.6]}
4. Bg2 {[%clk 0:03:04.3]} 4... O-O {[%clk 0:03:01.7]} 5. O-O {[%clk 0:03:06.1]}
5... d6 {[%clk 0:03:01.4]} 6. b3 {[%clk 0:03:06.9]} 6... e5 {[%clk 0:02:51.9]}
7. dxe5 {[%clk 0:03:06.9]} 7... dxe5 {[%clk 0:02:52.7]} 8. Ba3 {[%clk 0:03:06]}
8... Qxd1 {[%clk 0:02:45.7]} 9. Rxd1 {[%clk 0:03:05.7]} 9... Re8 {[%clk
0:02:47.2]} 10. Nc3 {[%clk 0:03:00.7]} 10... Bf5 {[%clk 0:02:41.1]} 11. Nh4
{[%clk 0:02:55.5]} 11... Bc8 {[%clk 0:02:30.6]} 12. Nb5 {[%clk 0:02:54.1]} 12...
Na6 {[%clk 0:02:31.1]} 13. c4 {[%clk 0:02:44.3]} 13... g5 {[%clk 0:02:20.8]} 14.
Nf3 {[%clk 0:02:42.2]} 14... h6 {[%clk 0:02:21.7]} 15. h4 {[%clk 0:02:36.4]}
15... g4 {[%clk 0:02:15.4]} 16. Nd2 {[%clk 0:02:36.4]} 16... Bf5 {[%clk
0:02:13.3]} 17. Nc3 {[%clk 0:02:35.6]} 17... c6 {[%clk 0:02:12]} 18. Nde4 {[%clk
0:02:35.8]} 18... Nxe4 {[%clk 0:02:11.9]} 19. Nxe4 {[%clk 0:02:36.4]} 19... Bxe4
{[%clk 0:02:10.3]} 20. Bxe4 {[%clk 0:02:37.2]} 20... Rad8 {[%clk 0:02:07.9]} 21.
Bf5 {[%clk 0:02:35]} 21... h5 {[%clk 0:02:07.7]} 22. e3 {[%clk 0:02:28.3]} 22...
Bf8 {[%clk 0:01:53.6]} 23. Bb2 {[%clk 0:02:28.7]} 23... Bd6 {[%clk 0:01:45.9]}
24. Kf1 {[%clk 0:02:27.8]} 24... Kg7 {[%clk 0:01:45.4]} 25. Ke2 {[%clk
0:02:27.8]} 25... f6 {[%clk 0:01:46.8]} 26. a3 {[%clk 0:02:19.5]} 26... Kf7
{[%clk 0:01:32.8]} 27. b4 {[%clk 0:02:19.4]} 27... c5 {[%clk 0:01:31.9]} 28. b5
{[%clk 0:02:18.2]} 28... Nc7 {[%clk 0:01:32.7]} 29. a4 {[%clk 0:02:14.9]} 29...
Be7 {[%clk 0:01:29.4]} 30. a5 {[%clk 0:02:07.2]} 30... Rxd1 {[%clk 0:01:22.8]}
31. Rxd1 {[%clk 0:02:06.3]} 31... Rd8 {[%clk 0:01:23.7]} 32. Be4 {[%clk
0:02:00.5]} 32... b6 {[%clk 0:01:23.7]} 33. a6 {[%clk 0:02:00.9]} 33... Rxd1
{[%clk 0:01:22.4]} 34. Kxd1 {[%clk 0:02:01.1]} 34... Ne8 {[%clk 0:01:20.8]} 35.
Bd5+ {[%clk 0:01:58.3]} 35... Kg6 {[%clk 0:01:19.6]} 36. Ke2 {[%clk 0:01:58.6]}
36... Bd6 {[%clk 0:01:19.9]} 37. f4 {[%clk 0:01:52]} 37... Nc7 {[%clk
0:01:09.9]} 38. fxe5 {[%clk 0:01:42.9]} 38... Bxe5 {[%clk 0:00:57.1]} 39. Be4+
{[%clk 0:01:42.1]} 39... Kf7 {[%clk 0:00:54]} 40. Bxe5 {[%clk 0:01:41.3]} 40...
fxe5 {[%clk 0:00:55.1]} 41. Kd3 {[%clk 0:01:39.4]} 41... Ne8 {[%clk 0:00:42.7]}
42. Bc6 {[%clk 0:01:18.1]} 42... Nd6 {[%clk 0:00:41.7]} 43. e4 {[%clk
0:01:18.1]} 43... Kg6 {[%clk 0:00:38]} 44. Bd5 {[%clk 0:01:17.4]} 44... Nc8
{[%clk 0:00:33.2]} 45. Ke3 {[%clk 0:01:15.6]} 45... Ne7 {[%clk 0:00:34]} 46. Kd3
{[%clk 0:01:12.5]} 46... Kf6 {[%clk 0:00:33.4]} 47. Bb7 {[%clk 0:01:11.1]} 47...
Ng6 {[%clk 0:00:32.6]} 48. Ke3 {[%clk 0:01:11.4]} 48... Nf8 {[%clk 0:00:31]} 49.
Bc6 {[%clk 0:01:11.8]} 49... Kg7 {[%clk 0:00:27.5]} 50. Be8 {[%clk 0:01:10]}
50... Kh6 {[%clk 0:00:28.1]} 51. Bf7 {[%clk 0:01:08.7]} 51... Nd7 {[%clk
0:00:27.8]} 52. Be8 {[%clk 0:01:08.4]} 52... Nf8 {[%clk 0:00:27.5]} 53. Bf7
{[%clk 0:01:08.9]} 53... Nd7 {[%clk 0:00:26.9]} 54. Be8 {[%clk 0:01:09.7]} 54...
Nf8 {[%clk 0:00:27.4]} 55. Bf7 {[%clk 0:01:09.3]} 55... Ng6 {[%clk 0:00:28.5]}
56. Bxg6 {[%clk 0:01:08.7]} 56... Kxg6 {[%clk 0:00:29.5]} 57. Kd3 {[%clk
0:01:09.4]} 57... Kf6 {[%clk 0:00:30.5]} 58. Ke3 {[%clk 0:01:10.4]} 58... Kg6
{[%clk 0:00:30.2]} 59. Kd3 {[%clk 0:01:11.6]} 59... Kf6 {[%clk 0:00:31.5]} 60.
Ke3 {[%clk 0:01:12.6]} 60... Kg6 {[%clk 0:00:32.8]} 1/2-1/2

[Event "*** Titled Tuesday Blitz"]
[Site "Chess.com"]
[Date "2019.02.05"]
[Round "7"]
[White "AlexTriapishko"]
[Black "GukeshDommaraju"]
[Result "1-0"]
[WhiteElo "2769"]
[BlackElo "2685"]
[TimeControl "180+2"]
[EndTime "14:40:37 PST"]
[Termination "AlexTriapishko won by resignation"]

1. c4 {[%clk 0:02:58.4]} 1... g6 {[%clk 0:02:59.4]} 2. g3 {[%clk 0:02:50.9]}
2... Bg7 {[%clk 0:03:00.1]} 3. Bg2 {[%clk 0:02:52.5]} 3... f5 {[%clk 0:03:01.4]}
4. Nc3 {[%clk 0:02:50.4]} 4... e5 {[%clk 0:02:59.3]} 5. d3 {[%clk 0:02:47.8]}
5... d6 {[%clk 0:02:59.5]} 6. e4 {[%clk 0:02:49.7]} 6... Nc6 {[%clk 0:02:58.6]}
7. Nge2 {[%clk 0:02:51.1]} 7... Nf6 {[%clk 0:02:59.2]} 8. O-O {[%clk 0:02:51.3]}
8... O-O {[%clk 0:03:00.3]} 9. Nd5 {[%clk 0:02:51.6]} 9... h6 {[%clk 0:02:59.4]}
10. h3 {[%clk 0:02:50.7]} 10... g5 {[%clk 0:02:56.6]} 11. f4 {[%clk 0:02:43.4]}
11... exf4 {[%clk 0:02:22.6]} 12. gxf4 {[%clk 0:02:43.3]} 12... g4 {[%clk
0:02:22.2]} 13. Ng3 {[%clk 0:02:03.8]} 13... fxe4 {[%clk 0:02:01.7]} 14. dxe4
{[%clk 0:01:49.4]} 14... gxh3 {[%clk 0:02:01.3]} 15. Bf3 {[%clk 0:01:50.9]}
15... Nxd5 {[%clk 0:01:33.8]} 16. cxd5 {[%clk 0:01:46.6]} 16... Nd4 {[%clk
0:01:34.6]} 17. Kh2 {[%clk 0:01:43.5]} 17... Qh4 {[%clk 0:01:31.1]} 18. Nh5
{[%clk 0:01:22]} 18... Nxf3+ {[%clk 0:01:29.6]} 19. Qxf3 {[%clk 0:01:23.9]}
19... Bg4 {[%clk 0:01:30.3]} 20. Qg3 {[%clk 0:01:25.4]} 20... Qxh5 {[%clk
0:01:23.9]} 21. Rg1 {[%clk 0:01:25.4]} 21... Rae8 {[%clk 0:01:05.5]} 22. Qxg4
{[%clk 0:01:26.7]} 22... Qxg4 {[%clk 0:01:06.5]} 23. Rxg4 {[%clk 0:01:28.6]}
23... Rxe4 {[%clk 0:01:07.9]} 24. Kxh3 {[%clk 0:01:30.1]} 24... Rf5 {[%clk
0:01:06.6]} 25. Bd2 {[%clk 0:01:27.7]} 25... Kf7 {[%clk 0:01:00.4]} 26. Rag1
{[%clk 0:01:25.5]} 26... Rh5+ {[%clk 0:01:01.2]} 27. Kg3 {[%clk 0:01:18.5]}
27... Rxd5 {[%clk 0:00:58.7]} 28. Kf3 {[%clk 0:01:19.7]} 28... Bxb2 {[%clk
0:00:20.5]} 29. Kxe4 {[%clk 0:01:10.7]} 29... Rxd2 {[%clk 0:00:21.2]} 30. Rh1
{[%clk 0:01:12.4]} 30... Bf6 {[%clk 0:00:21.3]} 31. Rxh6 {[%clk 0:01:11.3]}
31... d5+ {[%clk 0:00:22.5]} 32. Kf5 {[%clk 0:01:12.2]} 32... Be7 {[%clk
0:00:18.9]} 33. Rh7+ {[%clk 0:00:38.4]} 33... Ke8 {[%clk 0:00:19.8]} 34. Rg6
{[%clk 0:00:40]} 34... Kd8 {[%clk 0:00:09.3]} 35. Re6 {[%clk 0:00:38.4]} 35...
Bd6 {[%clk 0:00:09.5]} 36. Rg6 {[%clk 0:00:33]} 36... Be7 {[%clk 0:00:10.2]} 37.
Ke6 {[%clk 0:00:31.3]} 37... Re2+ {[%clk 0:00:10.4]} 38. Kxd5 {[%clk 0:00:31.5]}
38... Rxa2 {[%clk 0:00:12.3]} 39. f5 {[%clk 0:00:27.7]} 39... Ra5+ {[%clk
0:00:12.6]} 40. Ke6 {[%clk 0:00:27.9]} 40... Ra6+ {[%clk 0:00:13.6]} 41. Kf7
{[%clk 0:00:29.1]} 41... Ra5 {[%clk 0:00:14.5]} 42. f6 {[%clk 0:00:27.2]} 42...
Bxf6 {[%clk 0:00:15.3]} 43. Rxf6 {[%clk 0:00:25.7]} 43... b6 {[%clk 0:00:16.2]}
44. Kg6 {[%clk 0:00:14.3]} 44... Kc8 {[%clk 0:00:17]} 45. Rc6 {[%clk 0:00:15.8]}
45... Rc5 {[%clk 0:00:09]} 46. Rhxc7+ {[%clk 0:00:15.7]} 1-0

[Event "*** Titled Tuesday Blitz"]
[Site "Chess.com"]
[Date "2019.02.05"]
[Round "7"]
[White "RoelandPruijssers"]
[Black "jcibarra"]
[Result "1-0"]
[WhiteElo "2549"]
[BlackElo "2703"]
[TimeControl "180+2"]
[EndTime "14:40:42 PST"]
[Termination "RoelandPruijssers won on time"]

1. d4 {[%clk 0:03:01.9]} 1... Nf6 {[%clk 0:03:00.4]} 2. c4 {[%clk 0:03:03.2]}
2... d6 {[%clk 0:03:01.4]} 3. Nc3 {[%clk 0:03:03]} 3... e5 {[%clk 0:03:00.9]} 4.
Nf3 {[%clk 0:03:02.1]} 4... e4 {[%clk 0:03:01]} 5. Ng5 {[%clk 0:02:54.6]} 5...
Qe7 {[%clk 0:03:00.4]} 6. Qc2 {[%clk 0:02:43.9]} 6... Bf5 {[%clk 0:03:00.6]} 7.
f3 {[%clk 0:02:33.6]} 7... Nc6 {[%clk 0:03:01.4]} 8. e3 {[%clk 0:02:25.5]} 8...
Nxd4 {[%clk 0:03:02.4]} 9. Qd1 {[%clk 0:01:48.3]} 9... Nc6 {[%clk 0:03:01.5]}
10. Be2 {[%clk 0:01:45]} 10... exf3 {[%clk 0:02:53.5]} 11. Nxf3 {[%clk
0:01:46.9]} 11... g6 {[%clk 0:02:47.6]} 12. O-O {[%clk 0:01:45.4]} 12... Bg7
{[%clk 0:02:47.8]} 13. Nd5 {[%clk 0:01:44.8]} 13... Nxd5 {[%clk 0:02:47.4]} 14.
cxd5 {[%clk 0:01:46.7]} 14... Ne5 {[%clk 0:02:45.1]} 15. Nd4 {[%clk 0:01:42.2]}
15... Bd7 {[%clk 0:02:42.2]} 16. Qb3 {[%clk 0:01:42.8]} 16... O-O-O {[%clk
0:02:22.9]} 17. Bd2 {[%clk 0:01:40.5]} 17... Kb8 {[%clk 0:02:05.9]} 18. Rfc1
{[%clk 0:01:36.1]} 18... Bc8 {[%clk 0:01:37.1]} 19. a4 {[%clk 0:01:23.3]} 19...
Ka8 {[%clk 0:01:30.4]} 20. Ba5 {[%clk 0:01:19.5]} 20... Rd7 {[%clk 0:01:04.5]}
21. Bb5 {[%clk 0:01:15]} 21... Bh6 {[%clk 0:00:58.3]} 22. Bxd7 {[%clk
0:01:01.2]} 22... Nxd7 {[%clk 0:00:55.5]} 23. Rxc7 {[%clk 0:00:56.5]} 23...
Bxe3+ {[%clk 0:00:51.9]} 24. Kh1 {[%clk 0:00:57.5]} 24... Bxd4 {[%clk
0:00:51.5]} 25. Qc4 {[%clk 0:00:57.5]} 25... Bc5 {[%clk 0:00:48.1]} 26. b4
{[%clk 0:00:58.1]} 26... Qf6 {[%clk 0:00:42.3]} 27. Rc1 {[%clk 0:00:56]} 27...
Ne5 {[%clk 0:00:39.1]} 28. Qc3 {[%clk 0:00:54.8]} 28... Qf4 {[%clk 0:00:34.9]}
29. bxc5 {[%clk 0:00:47.8]} 29... Nd3 {[%clk 0:00:27.2]} 30. Rb1 {[%clk
0:00:30.8]} 30... Nf2+ {[%clk 0:00:24.6]} 31. Kg1 {[%clk 0:00:32.2]} 31... Ng4
{[%clk 0:00:19.2]} 32. cxd6 {[%clk 0:00:23]} 32... Qxh2+ {[%clk 0:00:18]} 33.
Kf1 {[%clk 0:00:24.4]} 33... Qh1+ {[%clk 0:00:17.4]} 34. Ke2 {[%clk 0:00:25.8]}
34... Qxg2+ {[%clk 0:00:18]} 35. Kd1 {[%clk 0:00:27]} 35... Qf1+ {[%clk
0:00:16.3]} 36. Kd2 {[%clk 0:00:27.5]} 36... Qf4+ {[%clk 0:00:14.8]} 37. Kc2
{[%clk 0:00:26.5]} 37... Bf5+ {[%clk 0:00:13.2]} 38. Kb3 {[%clk 0:00:27.4]}
38... Rb8 {[%clk 0:00:06.4]} 39. Rd1 {[%clk 0:00:17.4]} 39... Qxd6 {[%clk
0:00:07]} 40. Rxf7 {[%clk 0:00:15]} 40... Ne5 {[%clk 0:00:07.8]} 41. Bc7 {[%clk
0:00:14.1]} 41... Nxf7 {[%clk 0:00:04.1]} 42. Bxd6 {[%clk 0:00:14.9]} 42... Nxd6
{[%clk 0:00:06]} 43. Qe5 {[%clk 0:00:13.7]} 43... Ne4 {[%clk 0:00:05.7]} 44. d6
{[%clk 0:00:13.5]} 44... Be6+ {[%clk 0:00:03.7]} 45. Kb2 {[%clk 0:00:13.5]}
45... Bf5 {[%clk 0:00:04.5]} 46. d7 {[%clk 0:00:14.9]} 1-0

[Event "*** Titled Tuesday Blitz"]
[Site "Chess.com"]
[Date "2019.02.05"]
[Round "7"]
[White "r31415"]
[Black "Caisachess"]
[Result "1-0"]
[WhiteElo "2293"]
[BlackElo "2350"]
[TimeControl "180+2"]
[EndTime "14:40:44 PST"]
[Termination "r31415 won by resignation"]

1. e4 {[%clk 0:03:01.9]} 1... e5 {[%clk 0:03:00.8]} 2. Nf3 {[%clk 0:03:02.8]}
2... Nc6 {[%clk 0:03:02.2]} 3. Bc4 {[%clk 0:03:04.1]} 3... Bc5 {[%clk
0:03:02.6]} 4. c3 {[%clk 0:03:05.5]} 4... Nf6 {[%clk 0:03:01.1]} 5. d3 {[%clk
0:03:06.9]} 5... d6 {[%clk 0:02:59.5]} 6. Bb3 {[%clk 0:03:08.1]} 6... h6 {[%clk
0:02:54.8]} 7. Nbd2 {[%clk 0:03:08.8]} 7... O-O {[%clk 0:02:55.8]} 8. O-O {[%clk
0:03:09.8]} 8... Ne7 {[%clk 0:02:56.3]} 9. Re1 {[%clk 0:03:10.4]} 9... Ng6
{[%clk 0:02:56.7]} 10. Nf1 {[%clk 0:03:11.7]} 10... Bb6 {[%clk 0:02:55]} 11. Ng3
{[%clk 0:03:11.8]} 11... c6 {[%clk 0:02:56.5]} 12. d4 {[%clk 0:03:02.6]} 12...
Bg4 {[%clk 0:02:53.1]} 13. h3 {[%clk 0:02:45.3]} 13... Bxf3 {[%clk 0:02:53.2]}
14. Qxf3 {[%clk 0:02:47.2]} 14... exd4 {[%clk 0:02:54.7]} 15. Nf5 {[%clk
0:02:48.7]} 15... dxc3 {[%clk 0:02:34.9]} 16. Qxc3 {[%clk 0:02:33.9]} 16... d5
{[%clk 0:02:24.7]} 17. e5 {[%clk 0:02:30.1]} 17... Ne4 {[%clk 0:02:21.7]} 18.
Rxe4 {[%clk 0:02:27.3]} 18... dxe4 {[%clk 0:02:22.9]} 19. Bxh6 {[%clk
0:01:59.5]} 19... gxh6 {[%clk 0:02:19.8]} 20. e6 {[%clk 0:02:00.1]} 20... Ne5
{[%clk 0:01:37.1]} 21. Qg3+ {[%clk 0:01:39.2]} 21... Qg5 {[%clk 0:01:32.7]} 22.
Qxe5 {[%clk 0:01:27.9]} 22... fxe6 {[%clk 0:01:22.7]} 23. Bxe6+ {[%clk
0:01:10.7]} 23... Kh7 {[%clk 0:01:22.8]} 24. Qxe4 {[%clk 0:01:09.8]} 24... Qg6
{[%clk 0:01:17.7]} 25. Rd1 {[%clk 0:01:06.8]} 25... Rae8 {[%clk 0:00:55]} 26.
Rd7+ {[%clk 0:01:04.1]} 26... Kh8 {[%clk 0:00:55.8]} 27. Qe5+ {[%clk 0:00:35.8]}
27... Rf6 {[%clk 0:00:56]} 28. Ne7 {[%clk 0:00:33.7]} 28... Bxf2+ {[%clk
0:00:31.4]} 29. Kh2 {[%clk 0:00:04.3]} 29... Qg7 {[%clk 0:00:32]} 30. Nf5 {[%clk
0:00:03.1]} 30... Qg6 {[%clk 0:00:22.7]} 31. Ne7 {[%clk 0:00:04.3]} 31... Qg7
{[%clk 0:00:22.9]} 32. Nf5 {[%clk 0:00:03.3]} 32... Qg6 {[%clk 0:00:16.8]} 33.
Ne7 {[%clk 0:00:04.4]} 33... Qg7 {[%clk 0:00:14.4]} 34. Nd5 {[%clk 0:00:03.6]}
34... Rexe6 {[%clk 0:00:09.3]} 35. Qb8+ {[%clk 0:00:02.4]} 35... Kh7 {[%clk
0:00:10]} 36. Nxf6+ {[%clk 0:00:02.7]} 36... Rxf6 {[%clk 0:00:09.6]} 37. Rxg7+
{[%clk 0:00:04.6]} 37... Kxg7 {[%clk 0:00:10.1]} 38. Qxb7+ {[%clk 0:00:04.4]}
38... Rf7 {[%clk 0:00:11.5]} 39. Qxc6 {[%clk 0:00:04.6]} 39... Bd4 {[%clk
0:00:12.6]} 40. b3 {[%clk 0:00:03.8]} 40... Be5+ {[%clk 0:00:13.9]} 41. Kg1
{[%clk 0:00:05.1]} 41... Bd4+ {[%clk 0:00:15.4]} 42. Kh2 {[%clk 0:00:04.4]}
42... Be5+ {[%clk 0:00:16.7]} 43. g3 {[%clk 0:00:05.7]} 43... Rf2+ {[%clk
0:00:17.1]} 44. Kg1 {[%clk 0:00:07.1]} 44... Bxg3 {[%clk 0:00:18.1]} 45. Qc3+
{[%clk 0:00:08.1]} 45... Kg6 {[%clk 0:00:18.3]} 46. Qxg3+ {[%clk 0:00:09.3]} 1-0

[Event "*** Titled Tuesday Blitz"]
[Site "Chess.com"]
[Date "2019.02.05"]
[Round "7"]
[White "Saitama_Hero"]
[Black "NotFischer"]
[Result "1-0"]
[WhiteElo "2226"]
[BlackElo "2119"]
[TimeControl "180+2"]
[EndTime "14:40:50 PST"]
[Termination "Saitama_Hero won by resignation"]

1. d4 {[%clk 0:03:01.9]} 1... Nf6 {[%clk 0:03:00.4]} 2. Nf3 {[%clk 0:03:02.7]}
2... e6 {[%clk 0:03:01.8]} 3. Bg5 {[%clk 0:03:01.1]} 3... d5 {[%clk 0:03:02.9]}
4. c3 {[%clk 0:02:54.8]} 4... Nbd7 {[%clk 0:03:03.8]} 5. Nbd2 {[%clk 0:02:54.1]}
5... c5 {[%clk 0:03:04.1]} 6. e3 {[%clk 0:02:54.5]} 6... Be7 {[%clk 0:03:04.6]}
7. Bd3 {[%clk 0:02:54.2]} 7... h6 {[%clk 0:03:03.7]} 8. Bh4 {[%clk 0:02:46.8]}
8... O-O {[%clk 0:02:59.8]} 9. O-O {[%clk 0:02:48]} 9... b6 {[%clk 0:03:00.6]}
10. a3 {[%clk 0:02:10.3]} 10... Bb7 {[%clk 0:03:01]} 11. b4 {[%clk 0:02:10.3]}
11... cxd4 {[%clk 0:02:56.8]} 12. cxd4 {[%clk 0:02:09.9]} 12... Rc8 {[%clk
0:02:57.2]} 13. Qa4 {[%clk 0:02:06.9]} 13... Qc7 {[%clk 0:02:43.9]} 14. Rfc1
{[%clk 0:01:43.3]} 14... Qxc1+ {[%clk 0:02:42.5]} 15. Rxc1 {[%clk 0:01:45.2]}
15... Rxc1+ {[%clk 0:02:43.5]} 16. Nf1 {[%clk 0:01:45]} 16... Ra8 {[%clk
0:02:08.4]} 17. Ne5 {[%clk 0:01:44.7]} 17... Nf8 {[%clk 0:01:59.9]} 18. Bb5
{[%clk 0:01:34.7]} 18... g5 {[%clk 0:01:58.3]} 19. Bg3 {[%clk 0:01:34.5]} 19...
Ne4 {[%clk 0:02:00]} 20. Nd3 {[%clk 0:01:05.1]} 20... Rcc8 {[%clk 0:01:23.9]}
21. f3 {[%clk 0:00:54.4]} 21... Nxg3 {[%clk 0:01:05]} 22. hxg3 {[%clk
0:00:56.3]} 22... a6 {[%clk 0:01:06.3]} 23. Ne5 {[%clk 0:00:55]} 23... axb5
{[%clk 0:01:01.3]} 24. Qxb5 {[%clk 0:00:56.9]} 24... Ba6 {[%clk 0:00:55.8]} 25.
Qxb6 {[%clk 0:00:52.9]} 25... Rc1 {[%clk 0:00:56.1]} 26. b5 {[%clk 0:00:53.2]}
26... Rb1 {[%clk 0:00:46.3]} 27. Qc7 {[%clk 0:00:50.8]} 27... Bxb5 {[%clk
0:00:19.4]} 28. Qxe7 {[%clk 0:00:50.9]} 28... Rxf1+ {[%clk 0:00:20.7]} 29. Kh2
{[%clk 0:00:51.3]} 29... Be8 {[%clk 0:00:21.8]} 30. Ng4 {[%clk 0:00:45.5]} 30...
Nd7 {[%clk 0:00:14.7]} 31. Nxh6+ {[%clk 0:00:43.9]} 31... Kg7 {[%clk 0:00:16.1]}
32. Qxg5+ {[%clk 0:00:43.3]} 32... Kf8 {[%clk 0:00:16.2]} 33. Qg8+ {[%clk
0:00:33.9]} 33... Ke7 {[%clk 0:00:16.8]} 34. Nxf7 {[%clk 0:00:34.3]} 34... Ra1
{[%clk 0:00:13.7]} 35. Ng5 {[%clk 0:00:33.6]} 35... R1xa3 {[%clk 0:00:12.7]} 36.
Qxe6+ {[%clk 0:00:33.2]} 36... Kd8 {[%clk 0:00:13.4]} 37. Qxd5 {[%clk
0:00:33.3]} 37... R3a5 {[%clk 0:00:12.5]} 38. Qe4 {[%clk 0:00:21.3]} 38... R8a6
{[%clk 0:00:10.3]} 39. Ne6+ {[%clk 0:00:21.5]} 39... Kc8 {[%clk 0:00:09]} 40.
Nc5 {[%clk 0:00:17.7]} 40... Rh6+ {[%clk 0:00:06.4]} 41. Kg1 {[%clk 0:00:19.1]}
41... Ra1+ {[%clk 0:00:06.6]} 42. Kf2 {[%clk 0:00:20.5]} 42... Ra2+ {[%clk
0:00:08.3]} 43. Kf1 {[%clk 0:00:20.6]} 43... Rh8 {[%clk 0:00:06.4]} 44. Qc6+
{[%clk 0:00:15.3]} 44... Kd8 {[%clk 0:00:07.8]} 45. Nb7+ {[%clk 0:00:14.9]}
45... Ke7 {[%clk 0:00:08.4]} 46. Qd6+ {[%clk 0:00:15.4]} 46... Kf7 {[%clk
0:00:09.6]} 47. Qd5+ {[%clk 0:00:16.9]} 47... Kg7 {[%clk 0:00:10.6]} 48. Qxa2
{[%clk 0:00:18.2]} 48... Rh1+ {[%clk 0:00:11.3]} 49. Kf2 {[%clk 0:00:19.6]}
49... Nf6 {[%clk 0:00:11.8]} 50. Nd6 {[%clk 0:00:20.5]} 50... Bd7 {[%clk
0:00:12.3]} 51. Qa5 {[%clk 0:00:20.6]} 51... Rc1 {[%clk 0:00:11.8]} 52. Qg5+
{[%clk 0:00:21.3]} 52... Kf8 {[%clk 0:00:12.3]} 53. Qxf6+ {[%clk 0:00:22.8]} 1-0

[Event "*** Titled Tuesday Blitz"]
[Site "Chess.com"]
[Date "2019.02.05"]
[Round "7"]
[White "Godzillator"]
[Black "Angry_Serb"]
[Result "0-1"]
[WhiteElo "2383"]
[BlackElo "2535"]
[TimeControl "180+2"]
[EndTime "14:40:54 PST"]
[Termination "Angry_Serb won by resignation"]

1. d4 {[%clk 0:03:01.9]} 1... Nf6 {[%clk 0:03:00.6]} 2. c4 {[%clk 0:03:03]} 2...
g6 {[%clk 0:03:02.1]} 3. Nc3 {[%clk 0:03:04.3]} 3... d5 {[%clk 0:03:03.4]} 4.
Nf3 {[%clk 0:03:05.2]} 4... Bg7 {[%clk 0:03:04.4]} 5. h4 {[%clk 0:03:06.2]} 5...
c6 {[%clk 0:03:00.2]} 6. cxd5 {[%clk 0:03:05.8]} 6... cxd5 {[%clk 0:03:02.1]} 7.
Bf4 {[%clk 0:03:06.1]} 7... Nc6 {[%clk 0:02:55.7]} 8. e3 {[%clk 0:03:07]} 8...
Bg4 {[%clk 0:02:46.6]} 9. Qb3 {[%clk 0:03:07.9]} 9... Na5 {[%clk 0:02:16.5]} 10.
Bb5+ {[%clk 0:03:06.6]} 10... Bd7 {[%clk 0:02:07.2]} 11. Qa4 {[%clk 0:03:07.3]}
11... O-O {[%clk 0:01:42.1]} 12. Bxd7 {[%clk 0:03:05.4]} 12... Nxd7 {[%clk
0:01:44]} 13. Nxd5 {[%clk 0:03:02.3]} 13... e5 {[%clk 0:01:44.9]} 14. dxe5
{[%clk 0:02:57.4]} 14... Nxe5 {[%clk 0:01:45.9]} 15. Bxe5 {[%clk 0:02:46.2]}
15... Bxe5 {[%clk 0:01:40.1]} 16. Nxe5 {[%clk 0:02:44.5]} 16... Qxd5 {[%clk
0:01:41.6]} 17. Nf3 {[%clk 0:02:42.2]} 17... Rac8 {[%clk 0:01:22.2]} 18. h5
{[%clk 0:02:40]} 18... Rc4 {[%clk 0:01:21.6]} 19. Qd1 {[%clk 0:02:39]} 19... Qf5
{[%clk 0:00:46.9]} 20. hxg6 {[%clk 0:02:34.5]} 20... hxg6 {[%clk 0:00:45.9]} 21.
Rc1 {[%clk 0:02:20.6]} 21... Rfc8 {[%clk 0:00:29.3]} 22. Rxc4 {[%clk 0:02:19.3]}
22... Nxc4 {[%clk 0:00:31.2]} 23. b3 {[%clk 0:02:00.8]} 23... Nb2 {[%clk
0:00:27.1]} 24. Qa1 {[%clk 0:01:46]} 24... Rc1+ {[%clk 0:00:25.7]} 25. Qxc1
{[%clk 0:01:45]} 25... Nd3+ {[%clk 0:00:27.3]} 26. Kd2 {[%clk 0:01:44.2]} 26...
Nxc1 {[%clk 0:00:29.2]} 27. Rxc1 {[%clk 0:01:45.2]} 27... Qg4 {[%clk 0:00:28.5]}
28. Ne1 {[%clk 0:01:44.2]} 28... Qg5 {[%clk 0:00:18.6]} 29. Rc2 {[%clk
0:01:38.9]} 29... Kg7 {[%clk 0:00:18.4]} 30. g3 {[%clk 0:01:39.3]} 30... Qb5
{[%clk 0:00:17.7]} 31. Nd3 {[%clk 0:01:38.4]} 31... Qa5+ {[%clk 0:00:17.4]} 32.
b4 {[%clk 0:01:38.5]} 32... Qa3 {[%clk 0:00:15.3]} 33. Ke2 {[%clk 0:01:26.2]}
33... b6 {[%clk 0:00:16.5]} 34. Kd2 {[%clk 0:01:26.3]} 34... g5 {[%clk
0:00:17.8]} 35. f4 {[%clk 0:01:24.8]} 35... g4 {[%clk 0:00:18.4]} 36. Ke2 {[%clk
0:01:19.1]} 36... Qa4 {[%clk 0:00:18.5]} 37. Rd2 {[%clk 0:01:16.2]} 37... Qb5
{[%clk 0:00:17.6]} 38. Kf2 {[%clk 0:01:15.1]} 38... Qd5 {[%clk 0:00:17.1]} 39.
Ke1 {[%clk 0:01:09.9]} 39... Qh1+ {[%clk 0:00:16.9]} 40. Ke2 {[%clk 0:01:10.2]}
40... Qf3+ {[%clk 0:00:18.7]} 41. Ke1 {[%clk 0:01:10]} 41... Qxe3+ {[%clk
0:00:18.2]} 42. Kd1 {[%clk 0:01:08.7]} 42... Qxg3 {[%clk 0:00:19]} 43. Kc2
{[%clk 0:01:08.5]} 43... Qf3 {[%clk 0:00:18.5]} 44. Rf2 {[%clk 0:01:07.3]} 44...
Qe4 {[%clk 0:00:17.6]} 45. Kd2 {[%clk 0:01:02]} 45... g3 {[%clk 0:00:18.9]} 46.
Re2 {[%clk 0:01:03.6]} 46... Qf3 {[%clk 0:00:18.1]} 47. Re3 {[%clk 0:01:02.5]}
47... Qg2+ {[%clk 0:00:16.5]} 48. Re2 {[%clk 0:01:03.1]} 48... Qf1 {[%clk
0:00:17.7]} 49. Ne1 {[%clk 0:01:01.8]} 49... Qxf4+ {[%clk 0:00:17.6]} 50. Kd1
{[%clk 0:01:00.9]} 50... Qxb4 {[%clk 0:00:18]} 51. Rg2 {[%clk 0:01:01.6]} 51...
Qc3 {[%clk 0:00:16.7]} 52. Rc2 {[%clk 0:00:53.7]} 52... Qe3 {[%clk 0:00:15.3]}
53. Re2 {[%clk 0:00:54.8]} 53... Qa3 {[%clk 0:00:15.3]} 54. Rd2 {[%clk 0:00:51]}
54... f5 {[%clk 0:00:15.9]} 55. Ke2 {[%clk 0:00:52.2]} 55... f4 {[%clk 0:00:15]}
56. Nd3 {[%clk 0:00:51.9]} 56... Qe7+ {[%clk 0:00:15.2]} 57. Kf1 {[%clk
0:00:51.3]} 57... Qe3 {[%clk 0:00:14.7]} 58. Rd1 {[%clk 0:00:45.1]} 0-1